bitfinex/quotes_ETHUSD_20220111
["timestamp","ask_amount","ask_price","bid_price","bid_amount"]
[1641862966251,0.00284212,3054.7,3054.6,5.45184]
[1641862966655,0.00284212,3054.7,3054.6,0.45184]
[1641862966855,0.00284212,3054.7,3054.6,1.37]
[1641862967101,0.00284212,3054.7,3054.6,0.37]
[1641862972454,0.00284212,3054.7,3054.6,0.27]
[1641862972651,0.00284212,3054.7,3054.6,3.32]
[1641862973550,0.00284212,3054.7,3054.6,4.32]
[1641862974599,0.00284212,3054.7,3054.6,3.32]
[1641862975095,0.00284212,3054.7,3054.6,4.62]
[1641862975295,0.00284212,3054.7,3054.6,4.70183]
[1641862975499,1.79112475,3055.7,3054.7,4.65]
[1641862975696,2.09112475,3055.7,3055.1,0.81816]
[1641862975895,2.09112475,3055.7,3055.2,0.47]
[1641862975896,0.00511581,3055.6,3055.2,0.47]
[1641862976295,0.00454738,3055.5,3055.2,0.47]
[1641862976696,0.00397896,3055.4,3055.2,0.47]
[1641862977095,0.00341054,3055.3,3055.2,1.28811]
[1641862977496,0.00341054,3055.3,3055.2,0.47]
[1641862980459,2.70341054,3055.3,3055.2,0.47]
[1641862980658,5.19877976,3055.3,3055.2,0.47]
[1641862980858,5.49877976,3055.3,3055.2,0.47]
[1641862981158,5.49877976,3055.3,3054.6,0.47]
[1641862981159,8.2793278,3055.3,3054.6,0.47]
[1641862981460,0.00284211,3055.2,3054.6,0.47]
[1641862981658,1.05304211,3055.2,3054.6,0.47]
[1641862981860,0.00227369,3055.1,3054.6,0.47]
[1641862982102,0.8184948,3055.0,3054.6,0.47]
[1641862982302,1.12020007,3055.0,3054.6,0.47]
[1641862982507,0.00113684,3054.9,3054.6,0.47]
[1641862982700,0.00113684,3054.9,3054.2,6.2]
[1641862982904,2.6598456,3054.9,3053.9,3.2295]
[1641862983105,2.6598456,3054.9,3054.3,0.0022737]
[1641862983106,0.8187042,3054.5,3054.3,0.0022737]
[1641862983303,2.84891359,3054.4,3054.3,0.0022737]
[1641862983504,4.17855476,3054.4,3054.3,0.0022737]
[1641862983802,4.17855476,3054.4,3053.8,0.4848975]
[1641862983803,6.9591028,3054.4,3053.9,0.00454739]
[1641862985013,2.7562506,3054.3,3053.9,0.00454739]
[1641862985205,5.53679864,3054.3,3053.9,0.00454739]
[1641862985404,2.57819785,3054.2,3053.9,0.00454739]
[1641862986050,2.78054804,3054.2,3053.9,0.00454739]
[1641862986450,2.78054804,3054.2,3053.4,0.4863751]
[1641862986451,7.5977159,3054.1,3053.4,0.4863751]
[1641862986752,0.85389521,3053.8,3053.5,0.0022737]
[1641862986950,4.80079521,3053.8,3053.5,0.0022737]
[1641862987149,5.1,3053.7,3052.9,6.2]
[1641862987349,0.81901,3053.4,3052.9,6.15]
[1641862987557,0.00113684,3053.7,3053.0,4.26522804]
[1641862987750,0.00113684,3053.7,3053.0,36.80878286]
[1641862987953,0.00113684,3053.7,3053.1,1.00227369]
[1641862988150,0.00113684,3053.7,3053.2,0.47]
[1641862988352,0.00113684,3053.7,3053.2,0.47170527]
[1641862988651,0.00113684,3053.7,3053.5,1.30440589]
[1641862988851,0.00113684,3053.7,3053.6,3.77]
[1641862989252,0.00113684,3053.7,3053.6,4.77]
[1641862989704,0.00113684,3053.7,3053.6,7.21844578]
[1641862990108,0.00113684,3053.7,3053.6,5.58855]
[1641862990305,0.00113684,3053.7,3053.6,8.07288866]
[1641862990506,3.7768,3054.8,3053.7,5.4]
[1641862990705,3.6978,3055.1,3054.0,5.873]
[1641862990906,0.00284213,3054.2,3054.1,3.20217874]
[1641862991109,3.6978,3055.1,3054.2,24.2]
[1641862991306,3.6978,3055.1,3054.1,0.01228879]
[1641862991307,2.49454798,3055.0,3054.1,0.01228879]
[1641862991508,2.49454798,3055.0,3053.6,0.00719476]
[1641862991509,0.08183,3054.9,3053.6,0.00719476]
[1641862991707,0.81866,3054.8,3053.6,0.00719476]
[1641862991906,2.57639798,3054.7,3053.7,0.00284212]
[1641862992108,1.63791,3054.4,3053.6,0.00719476]
[1641862992308,1.53477439,3054.1,3053.6,0.00719476]
[1641862992508,5.45329496,3054.3,3053.6,0.00719476]
[1641862992712,6.19620798,3054.0,3053.6,0.00719476]
[1641862992908,0.55186,3053.9,3053.6,0.00719476]
[1641862993106,1.77499685,3053.9,3053.6,0.00719476]
[1641862993377,5.13284163,3053.8,3052.8,0.015]
[1641862993577,1.08186,3053.7,3052.8,0.015]
[1641862993777,1.08186,3053.7,3052.9,0.00454739]
[1641862993979,1.3621375,3053.4,3052.9,0.00454739]
[1641862994177,1.6621375,3053.4,3052.9,0.00454739]
[1641862994676,0.81895,3053.5,3052.9,0.00454739]
[1641862994877,7.81315453,3053.9,3052.9,0.00454739]
[1641862994878,1.22313685,3053.9,3052.9,0.00454739]
[1641862995080,2.78145841,3053.3,3053.0,0.47]
[1641862995477,2.78145841,3053.3,3053.1,0.00341054]
[1641862996077,2.78145841,3053.8,3053.1,1.29215054]
[1641862996477,3.08145841,3053.8,3053.2,0.00284212]
[1641862996677,3.08145841,3053.8,3053.3,0.47]
[1641862997096,3.08145841,3053.8,3053.4,0.00170527]
[1641862997296,3.08145841,3053.8,3053.4,0.47170527]
[1641862997496,0.3,3053.8,3053.4,0.47170527]
[1641862997696,2.78259526,3053.9,3053.5,0.00113685]
[1641862997900,2.78259526,3053.9,3053.6,0.47]
[1641862998100,0.00113685,3053.9,3053.7,5.873]
[1641862998297,0.00113685,3053.9,3053.8,5.57]
[1641862998498,0.00113685,3053.9,3053.8,6.57]
[1641862998699,1.59531365,3054.8,3054.0,5.1]
[1641862998898,2.7819519,3054.7,3054.1,6.343]
[1641862999099,0.00284212,3054.4,3054.1,7.343]
[1641862999501,0.00227369,3054.3,3054.1,8.9795]
[1641862999700,2.7819519,3054.7,3054.2,6.20328518]
[1641862999900,2.7819519,3055.0,3054.3,19.52]
[1641863000102,2.7819519,3055.0,3054.4,5.1]
[1641863000405,2.7819519,3055.0,3054.5,3.37165812]
[1641863000406,0.00170527,3054.9,3054.5,3.37165812]
[1641863000606,0.00170527,3054.9,3054.5,0.77]
[1641863000850,0.00113685,3054.8,3054.6,1.0]
[1641863001050,0.00113685,3054.8,3054.7,3.97]
[1641863001356,2.7819519,3055.3,3055.0,0.81819]
[1641863001551,2.7819519,3055.3,3055.2,1.3915184]
[1641863001752,1.59531365,3056.0,3055.2,5.35362508]
[1641863002150,3.15931376,3056.4,3055.3,1.0]
[1641863002151,0.00682108,3055.8,3055.3,1.0]
[1641863002351,3.15931376,3056.4,3055.7,5.873]
[1641863002552,3.15931376,3056.4,3056.1,1.29684255]
[1641863002752,3.15931376,3056.8,3056.2,2.04841448]
[1641863002954,3.15931376,3056.8,3056.3,5.873]
[1641863003151,3.16215588,3056.8,3056.4,1.55178]
[1641863003552,3.9491422,3057.2,3056.4,1.55178]
[1641863003553,3.9491422,3057.2,3056.6,5.15]
[1641863003751,3.9491422,3057.2,3056.7,6.42478]
[1641863003950,0.00170527,3057.1,3057.0,1.10204896]
[1641863004151,0.131178,3057.7,3057.1,5.15]
[1641863004350,0.131178,3057.7,3057.3,0.05488957]
[1641863004604,0.00284212,3057.6,3057.4,1.28752]
[1641863004800,0.00284212,3057.6,3057.4,0.47]
[1641863004998,0.00227369,3057.5,3057.4,0.47]
[1641863005606,0.08345169,3057.7,3057.4,0.47]
[1641863005800,0.08345169,3057.7,3057.5,1.28667264]
[1641863006500,0.08345169,3057.7,3057.4,0.47]
[1641863007902,0.08345169,3057.7,3057.4,2.20664129]
[1641863008106,0.08345169,3057.7,3057.4,0.47]
[1641863008355,0.08345169,3057.7,3057.4,1.28759]
[1641863008554,0.08345169,3057.7,3057.4,1.58759]
[1641863009155,0.08345169,3057.7,3057.5,32.62530482]
[1641863009357,0.08345169,3057.7,3057.6,0.47]
[1641863009755,0.08458854,3057.7,3057.6,0.47]
[1641863010359,2.37911209,3058.8,3057.6,47.80343734]
[1641863010559,2.37911209,3058.8,3057.9,0.01264292]
[1641863010761,0.00511581,3058.6,3058.3,5.873]
[1641863010958,0.00511581,3058.6,3058.4,0.55173]
[1641863011259,3.6903,3059.3,3058.5,8.68884091]
[1641863011458,2.37911209,3059.4,3058.6,0.47]
[1641863011662,2.37911209,3059.4,3058.8,0.81717]
[1641863011859,2.37911209,3059.4,3059.0,0.81717]
[1641863012108,2.37911209,3059.4,3059.1,0.47]
[1641863012708,3.16565094,3059.6,3059.1,0.47]
[1641863012709,1.58384641,3059.9,3059.1,7.16007]
[1641863012908,1.58384641,3059.9,3059.1,7.97712]
[1641863013108,0.01023162,3059.5,3059.1,6.643]
[1641863013311,0.01023162,3059.5,3059.1,0.47]
[1641863013510,0.0096632,3059.4,3059.1,0.47]
[1641863013709,0.0096632,3059.4,3058.6,1.0]
[1641863013909,1.58384641,3060.0,3058.6,2.11816622]
[1641863013910,0.00909478,3059.3,3058.6,2.11816622]
[1641863014108,0.00909478,3059.3,3058.7,0.47]
[1641863014310,0.00852635,3059.2,3058.7,0.47]
[1641863014810,0.00795793,3059.1,3058.7,3.11482564]
[1641863015007,0.00795793,3059.1,3058.8,1.0]
[1641863015210,0.00738951,3059.0,3058.9,0.47]
[1641863015864,1.58384641,3060.1,3059.6,0.81694]
[1641863016061,3.9629585,3060.3,3059.7,0.47]
[1641863016260,0.00568423,3060.0,3059.7,0.47]
[1641863016462,0.00568423,3060.0,3059.7,0.77]
[1641863016660,0.00511581,3059.9,3059.7,0.77]
[1641863016860,0.00511581,3059.9,3059.7,0.47]
[1641863017062,2.90454738,3059.8,3059.7,0.47]
[1641863017263,2.90454738,3059.8,3059.1,0.47]
[1641863017461,0.00454738,3059.8,3059.1,0.47]
[1641863017662,0.00397896,3059.7,3059.1,0.47]
[1641863018061,0.00341054,3059.6,3059.1,0.47]
[1641863018465,0.00284211,3059.5,3059.4,4.1314]
[1641863018661,0.00284211,3059.5,3059.4,1.4514]
[1641863020002,0.00284211,3059.5,3059.4,5.1014]
[1641863020204,0.00284211,3059.5,3059.4,2.4514]
[1641863020603,0.00284211,3059.5,3059.4,1.4514]
[1641863023454,2.77781017,3060.4,3059.6,0.9814]
[1641863023657,2.77781017,3060.4,3059.8,0.9814]
[1641863023854,0.00454739,3060.3,3060.0,0.9814]
[1641863024055,2.77781017,3060.2,3060.1,0.9814]
[1641863024355,5.36821107,3060.2,3060.1,0.9814]
[1641863024553,2.78178914,3060.2,3060.1,0.9814]
[1641863024755,3.91318914,3060.2,3060.1,0.9814]
[1641863024959,0.9814,3059.2,3059.0,0.34953132]
[1641863025356,0.9814,3059.2,3059.1,0.00227369]
[1641863028522,0.03306701,3058.9,3058.7,1.71597]
[1641863028725,0.9814,3058.8,3058.3,0.08172]
[1641863028920,0.9814,3058.8,3058.2,2.02656]
[1641863028921,1.8637,3058.8,3058.2,2.02656]
[1641863029122,0.9814,3058.7,3058.2,2.02656]
[1641863029319,0.9814,3058.7,3058.3,0.00454739]
[1641863029521,0.5721,3059.3,3057.9,4.23961253]
[1641863029522,0.9814,3058.1,3057.9,4.23961253]
[1641863029721,0.9814,3058.1,3058.0,3.58175]
[1641863029924,0.00511581,3059.2,3058.1,5.05]
[1641863030221,0.00454739,3059.1,3058.3,19.1]
[1641863030419,0.00454739,3059.1,3058.4,3.08901809]
[1641863030620,0.00397897,3059.0,3058.5,0.3]
[1641863030850,0.00397897,3059.0,3058.5,0.692]
[1641863031051,0.00341054,3058.9,3058.5,0.692]
[1641863031452,0.00284212,3058.8,3058.5,0.392]
[1641863031953,0.0022737,3058.7,3058.6,2.10031505]
[1641863032152,0.0022737,3058.7,3058.6,2.11722]
[1641863033356,0.0022737,3058.7,3058.6,0.89894]
[1641863033554,0.0022737,3058.7,3058.6,0.47372]
[1641863034355,0.0022737,3058.7,3058.6,0.392]
[1641863037202,0.0022737,3058.7,3058.6,1.392]
[1641863038657,0.0022737,3058.7,3058.6,0.392]
[1641863039061,0.0022737,3058.7,3058.6,1.392]
[1641863039257,0.0022737,3058.7,3058.6,0.392]
[1641863039460,0.0022737,3058.7,3058.6,1.392]
[1641863039859,0.0022737,3058.7,3058.6,6.59370791]
[1641863040059,0.0022737,3058.7,3058.6,7.59370791]
[1641863040459,0.0022737,3058.7,3058.6,5.042]
[1641863040661,0.0022737,3058.7,3058.6,8.81680455]
[1641863040860,3.9772,3059.7,3059.0,0.81705]
[1641863041061,4.16899202,3060.0,3059.3,0.81705]
[1641863041259,4.16899202,3060.0,3059.4,0.392]
[1641863041260,0.00511581,3059.6,3059.4,0.392]
[1641863041662,0.00454738,3059.5,3059.4,0.392]
[1641863042307,1.53839379,3059.9,3059.4,0.392]
[1641863042501,1.29842812,3060.0,3059.4,0.392]
[1641863042701,0.00170527,3059.8,3059.4,0.392]
[1641863043100,0.00113685,3059.7,3059.4,0.392]
[1641863043501,0.0022737,3059.9,3059.4,0.392]
[1641863043704,3.19636209,3059.8,3058.8,0.47369]
[1641863043904,3.19636209,3059.8,3058.0,0.08339527]
[1641863043905,0.8174067,3059.5,3058.0,0.08339527]
[1641863044103,0.3,3059.3,3058.9,0.00341054]
[1641863044310,0.3,3059.3,3058.6,0.81731]
[1641863044502,1.00113685,3059.7,3058.6,0.81731]
[1641863044704,3.38024894,3059.7,3058.7,0.00454738]
[1641863044902,2.68024894,3059.7,3058.9,1.50949392]
[1641863045107,0.82242581,3059.6,3058.9,1.50949392]
[1641863045305,0.82242581,3059.6,3058.9,2.32670392]
[1641863045503,0.00454738,3059.5,3058.9,2.32670392]
[1641863045756,2.37911209,3059.4,3058.9,0.10115006]
[1641863045957,2.68309105,3059.4,3058.9,0.10115006]
[1641863046157,0.00341054,3059.3,3058.9,0.10115006]
[1641863046558,0.00284211,3059.2,3058.7,1.43464581]
[1641863046860,0.00227369,3059.1,3058.7,2.25192581]
[1641863047057,2.38138578,3059.1,3058.7,2.25192581]
[1641863047258,0.00170527,3059.0,3058.7,2.25192581]
[1641863047560,0.00113684,3058.9,3058.7,2.25192581]
[1641863047757,0.00113684,3058.9,3058.7,0.81728]
[1641863047959,0.00170527,3059.0,3058.7,0.81728]
[1641863048357,0.00113684,3058.9,3058.7,0.81728]
[1641863048758,2.77820952,3059.0,3058.7,0.81728]
[1641863048958,3.08048321,3059.1,3058.7,0.81728]
[1641863049159,0.00113684,3058.9,3058.7,0.81728]
[1641863049362,2.77820952,3058.9,3058.7,0.81728]
[1641863050108,2.77991479,3059.0,3058.7,0.81728]
[1641863050509,0.00113684,3058.9,3058.3,0.08172]
[1641863050910,0.00113684,3058.9,3058.4,0.00170528]
[1641863051312,1.5150563,3058.9,3058.4,0.00170528]
[1641863051511,1.9096104,3058.6,3058.4,0.00170528]
[1641863051708,8.03865803,3058.5,3058.4,0.00170528]
[1641863051911,8.03865803,3058.5,3057.8,0.00511582]
[1641863052109,8.03865803,3058.5,3057.3,0.53019997]
[1641863052110,0.81768,3058.3,3057.6,0.00625266]
[1641863052310,2.75611774,3058.2,3057.6,0.00625266]
[1641863052513,2.75611774,3058.2,3057.5,0.00682109]
[1641863052909,0.81768,3058.3,3057.5,0.00682109]
[1641863053110,1.35677478,3058.2,3057.5,0.00682109]
[1641863053358,4.03605189,3058.2,3057.5,0.00682109]
[1641863053559,4.38425705,3058.1,3057.5,0.00682109]
[1641863055162,1.60604753,3058.0,3057.5,0.00682109]
[1641863055764,2.67625955,3057.9,3057.5,0.00682109]
[1641863056063,2.67625955,3057.9,3057.4,0.00738951]
[1641863056362,5.45446907,3057.9,3057.4,0.00738951]
[1641863056565,3.59600952,3057.9,3057.4,0.00738951]
[1641863056762,2.77820952,3057.9,3057.4,0.00738951]
[1641863057224,2.77820952,3057.8,3057.4,0.00738951]
[1641863057519,3.07820952,3057.8,3057.4,0.00738951]
[1641863057920,2.77820952,3057.9,3057.4,0.00738951]
[1641863058122,3.07820952,3057.9,3057.4,0.00738951]
[1641863058522,2.65463321,3057.8,3057.2,0.00852636]
[1641863058721,3.73638321,3057.8,3057.2,0.00852636]
[1641863059021,0.8179185,3057.6,3056.7,0.01136847]
[1641863059220,2.86218137,3057.5,3056.7,0.01136847]
[1641863059420,3.16218137,3057.5,3056.7,0.01136847]
[1641863059621,1.31019566,3057.2,3056.7,0.01136847]
[1641863059825,3.16218137,3057.5,3056.7,0.01136847]
[1641863060020,0.81792,3057.3,3056.7,0.01136847]
[1641863060223,1.11792,3057.3,3056.7,0.01136847]
[1641863060754,0.3,3057.3,3056.7,0.01136847]
[1641863060956,2.77820952,3057.4,3056.7,0.01136847]
[1641863061157,5.48093806,3057.4,3056.7,0.01136847]
[1641863061356,1.19476059,3057.0,3056.7,0.01136847]
[1641863061556,2.68543172,3056.9,3056.7,0.01136847]
[1641863061756,1.49476059,3057.0,3056.7,0.01136847]
[1641863063160,0.3,3057.0,3056.7,0.01136847]
[1641863063458,1.3,3057.2,3056.7,0.01136847]
[1641863063660,0.6,3057.2,3056.7,0.01136847]
[1641863064057,1.6,3057.4,3056.7,0.01136847]
[1641863064703,1.6,3057.4,3056.8,1.4149116]
[1641863065100,1.6,3057.4,3056.9,0.01023163]
[1641863065501,0.08178,3057.6,3056.9,0.01023163]
[1641863065904,0.08178,3057.6,3057.3,0.05682931]
[1641863066103,0.08178,3057.6,3057.2,1.63518]
[1641863066302,0.08178,3057.6,3057.4,0.00738951]
[1641863066503,0.08178,3057.6,3057.3,0.00795793]
[1641863066704,0.08178,3057.6,3057.5,0.81758]
[1641863066904,0.08178,3057.6,3057.3,0.00795793]
[1641863067105,0.08178,3057.6,3057.5,0.00682109]
[1641863067305,0.08178,3057.6,3057.3,1.13703033]
[1641863067507,0.08178,3057.6,3057.5,4.3]
[1641863067704,0.08178,3057.6,3057.5,4.692]
[1641863068008,4.16899202,3058.5,3057.7,1.63488]
[1641863068253,4.89044753,3058.8,3058.4,1.44645487]
[1641863068254,4.16899202,3058.7,3058.4,1.44645487]
[1641863068454,4.16899202,3058.7,3058.4,2.55095487]
[1641863068654,3.6815,3059.0,3058.5,0.00113685]
[1641863068855,5.49384753,3059.5,3058.5,0.00113685]
[1641863069056,1.60604753,3059.5,3058.5,0.00113685]
[1641863069457,1.23699073,3059.4,3058.5,0.00113685]
[1641863069656,1.23699073,3059.4,3058.5,0.81837685]
[1641863069859,2.65386358,3059.3,3058.5,0.00113685]
[1641863070062,1.0,3059.2,3058.5,0.00113685]
[1641863070256,1.0,3059.2,3058.0,0.392]
[1641863070257,3.1086534,3059.1,3058.1,0.00341055]
[1641863070457,3.4086534,3059.1,3058.1,0.00341055]
[1641863070758,1.29923253,3058.6,3058.0,0.19541055]
[1641863071157,0.0022737,3058.5,3058.0,0.19541055]
[1641863071558,0.00170527,3058.4,3058.0,0.19541055]
[1641863072007,0.00113685,3058.3,3058.0,1.01287055]
[1641863072302,0.00170527,3058.4,3058.0,1.01287055]
[1641863072503,0.00170527,3058.4,3058.0,2.01287055]
[1641863072705,0.00113685,3058.3,3058.0,1.01287055]
[1641863072903,0.00113685,3058.3,3058.0,2.01287055]
[1641863073307,0.00113685,3058.3,3058.0,1.01287055]
[1641863073506,0.00113685,3058.3,3058.0,1.31287055]
[1641863073706,2.77844567,3059.0,3058.1,5.15]
[1641863073905,14.38933955,3059.6,3058.6,0.81722]
[1641863074105,0.00341054,3058.9,3058.6,0.81722]
[1641863074509,0.00284212,3058.8,3058.7,1.43096562]
[1641863075011,0.00284212,3058.8,3058.6,0.89893]
[1641863075012,0.00284212,3058.8,3058.6,0.08171]
[1641863075218,0.00284212,3058.8,3058.4,1.0]
[1641863075407,5.45045538,3059.5,3058.4,0.392]
[1641863075408,0.0022737,3058.7,3058.4,0.392]
[1641863075856,0.00170527,3058.6,3058.4,0.392]
[1641863076256,0.00113685,3058.5,3058.4,0.392]
[1641863078562,1.40884215,3058.8,3058.4,0.392]
[1641863078961,0.00113685,3058.7,3058.4,0.392]
[1641863079805,0.00113685,3058.7,3058.4,1.20933]
[1641863080000,0.00113685,3058.7,3058.5,0.3]
[1641863080200,0.00113685,3058.7,3058.6,3.892]
[1641863080403,0.00113685,3058.7,3058.6,0.392]
[1641863080600,0.00113685,3058.7,3058.6,1.392]
[1641863080800,0.00113685,3058.7,3058.6,0.392]
[1641863081001,0.00113685,3058.7,3058.6,4.46011918]
[1641863081202,0.00113685,3058.7,3058.6,1.92829288]
[1641863081401,0.00113685,3058.7,3058.6,2.92829288]
[1641863081803,0.00113685,3058.7,3058.6,5.48520305]
[1641863082702,2.67940509,3059.4,3059.3,1.13467024]
[1641863082905,2.67940509,3059.4,3059.3,2.01517024]
[1641863083361,1.60604753,3059.9,3059.3,2.01517024]
[1641863083560,1.90604753,3059.9,3059.3,2.01517024]
[1641863083863,0.00568423,3059.7,3059.3,2.01517024]
[1641863084259,0.00511581,3059.6,3059.3,2.01517024]
[1641863084662,0.00454738,3059.5,3059.3,2.01517024]
[1641863084862,0.00454738,3059.5,3059.4,4.842]
[1641863085065,1.60604753,3060.0,3059.6,0.817]
[1641863085464,0.00682108,3059.9,3059.6,0.817]
[1641863085662,0.00682108,3059.9,3059.6,0.795372]
[1641863085863,0.00625265,3059.8,3059.6,0.795372]
[1641863086162,0.00568423,3059.7,3059.6,0.795372]
[1641863086764,0.00568423,3059.7,3059.4,0.392]
[1641863087205,0.00511581,3059.6,3059.4,0.392]
[1641863087607,0.00454738,3059.5,3059.4,0.392]
[1641863087804,0.00454738,3059.5,3059.3,0.08171]
[1641863088007,0.00454738,3059.5,3059.1,0.81714]
[1641863088203,0.00397896,3059.4,3059.1,0.81714]
[1641863088603,0.00341054,3059.3,3059.1,0.81714]
[1641863089007,0.00284211,3059.2,3059.1,0.81714]
[1641863089207,0.00284211,3059.2,3059.1,0.89885]
[1641863090204,0.00284211,3059.2,3059.1,3.06714]
[1641863090405,0.00284211,3059.2,3059.1,3.36714]
[1641863090609,0.00284211,3059.2,3059.1,6.93409177]
[1641863090856,0.00284211,3059.2,3059.1,3.06714]
[1641863091054,0.00284211,3059.2,3059.1,1.28814]
[1641863091257,0.00284211,3059.2,3059.1,1.36985]
[1641863091655,0.00284211,3059.2,3059.1,2.28814]
[1641863091855,0.00284211,3059.2,3059.1,1.28814]
[1641863094358,0.00284211,3059.2,3059.1,3.81438216]
[1641863094619,0.00284211,3059.2,3059.1,1.36985]
[1641863094818,3.8802,3060.2,3059.2,5.15]
[1641863095014,3.8802,3060.2,3059.3,0.55269]
[1641863095215,0.00511581,3060.1,3059.3,1.471]
[1641863095417,0.00511581,3060.1,3059.6,1.63385]
[1641863095616,0.00454739,3060.0,3059.3,0.471]
[1641863096018,0.00397897,3059.9,3059.3,0.471]
[1641863096417,0.00341054,3059.8,3059.3,0.471]
[1641863096716,0.00284212,3059.7,3059.3,0.471]
[1641863097119,0.0022737,3059.6,3059.3,0.471]
[1641863097320,0.0022737,3059.6,3059.4,0.81706]
[1641863097517,0.00170527,3059.5,3059.4,1.28806]
[1641863098363,0.00170527,3059.5,3059.4,0.471]
[1641863098567,0.00170527,3059.5,3058.9,0.08171]
[1641863098762,0.00170527,3059.5,3058.8,1.63426]
[1641863098962,0.00113685,3059.4,3059.0,0.00113685]
[1641863099163,0.00113685,3059.4,3058.9,0.00170527]
[1641863099363,1.52379251,3059.3,3058.9,0.00170527]
[1641863099762,1.52379251,3059.3,3058.8,0.00227369]
[1641863099963,1.00454739,3060.0,3058.8,0.00227369]
[1641863100165,0.00454739,3060.0,3058.8,0.00227369]
[1641863100366,0.00397897,3059.9,3058.8,0.00227369]
[1641863100765,0.00341054,3059.8,3058.8,0.00227369]
[1641863100964,0.81731,3059.6,3058.8,0.00227369]
[1641863101168,1.11731,3059.6,3058.8,0.00227369]
[1641863101367,0.00170527,3059.5,3058.8,0.00227369]
[1641863101566,0.00170527,3059.5,3058.5,0.00397896]
[1641863101871,0.00113685,3059.4,3058.5,0.00397896]
[1641863102114,1.38110135,3058.9,3058.5,0.00397896]
[1641863102510,5.0706,3059.4,3058.5,0.00397896]
[1641863103509,5.0706,3059.4,3058.5,0.30397896]
[1641863103510,3.9406,3059.4,3058.5,0.30397896]
[1641863103713,3.9406,3059.4,3058.9,0.81718]
[1641863104013,2.7781861,3059.3,3059.0,0.00113684]
[1641863104916,0.00113685,3059.4,3059.1,0.471]
[1641863105113,0.00113685,3059.4,3059.2,3.58708525]
[1641863105411,0.00113685,3059.4,3059.3,0.471]
[1641863105611,0.00113685,3059.4,3059.3,1.471]
[1641863105860,0.00113685,3059.4,3059.3,1.57271201]
[1641863106059,0.00113685,3059.4,3059.3,0.471]
[1641863110408,0.00113685,3059.4,3059.3,4.33971445]
[1641863110608,2.7781861,3059.8,3059.5,19.1]
[1641863110806,2.7781861,3059.8,3059.6,22.61668668]
[1641863111013,2.7781861,3059.8,3059.7,3.15220459]
[1641863111309,2.78045979,3059.8,3059.7,6.63724922]
[1641863111516,6.70631325,3060.6,3060.2,1.37245148]
[1641863111708,6.70631325,3060.6,3060.2,1.84345148]
[1641863111909,0.00397897,3060.5,3060.2,1.84345148]
[1641863112310,0.00341054,3060.4,3060.2,0.471]
[1641863112709,0.00284212,3060.3,3060.2,0.471]
[1641863113365,0.00284212,3060.3,3059.8,0.471]
[1641863113560,1.12071152,3059.9,3059.4,0.471]
[1641863113961,0.0022737,3060.2,3059.5,0.00170527]
[1641863114362,0.00170527,3060.1,3059.5,0.00170527]
[1641863114762,0.00113685,3060.0,3059.7,0.81698]
[1641863115163,1.45080524,3060.4,3059.7,0.81698]
[1641863115564,0.00284212,3060.3,3059.7,0.81698]
[1641863115965,0.0022737,3060.2,3059.7,0.81698]
[1641863116465,0.00170527,3060.1,3059.7,0.81698]
[1641863116868,0.00170527,3060.1,3059.5,0.00170527]
[1641863116869,0.00113685,3060.0,3059.5,0.00170527]
[1641863117113,1.11833685,3060.0,3059.5,0.00170527]
[1641863117317,2.88917387,3059.9,3059.4,0.00227369]
[1641863118215,1.5564832,3059.5,3059.4,0.00227369]
[1641863118416,2.71169746,3059.7,3059.4,0.00227369]
[1641863118615,2.62785334,3059.7,3059.4,0.00227369]
[1641863118814,0.81731,3059.8,3058.9,0.81721]
[1641863118815,2.63921544,3059.8,3058.9,0.81721]
[1641863119019,7.91572336,3059.9,3058.9,0.81721]
[1641863119318,8.21572336,3059.9,3059.0,0.00454738]
[1641863119514,0.81727,3059.8,3059.0,0.00454738]
[1641863119717,2.66868357,3059.7,3058.8,0.82290423]
[1641863119915,2.96868357,3059.7,3058.8,0.00568423]
[1641863120115,2.66868357,3059.7,3058.9,0.00511581]
[1641863120315,2.66868357,3059.7,3058.7,0.08796265]
[1641863120316,1.45215507,3059.5,3058.7,0.08796265]
[1641863120765,1.45215507,3059.5,3058.8,0.00568423]
[1641863120965,1.45215507,3059.5,3058.8,0.82290423]
[1641863121162,2.70042175,3059.4,3058.8,0.00568423]
[1641863121365,2.70042175,3059.4,3058.9,0.00511581]
[1641863121566,2.70042175,3059.4,3058.7,0.00625265]
[1641863121766,2.70042175,3059.4,3058.5,0.0073895]
[1641863121967,1.12023041,3058.9,3058.5,0.0073895]
[1641863122363,1.12023041,3058.9,3058.3,0.00852635]
[1641863122764,6.96182336,3059.1,3058.1,0.0096632]
[1641863122965,3.9944,3059.1,3058.1,0.0096632]
[1641863123863,5.48750081,3059.1,3058.4,1.47011462]
[1641863124063,5.48750081,3059.1,3058.4,2.28745462]
[1641863124266,5.48750081,3059.1,3058.5,0.0073895]
[1641863124520,1.49310081,3059.1,3058.5,0.0073895]
[1641863124710,6.77503955,3059.5,3058.5,0.0073895]
[1641863124909,1.60604753,3059.4,3058.5,0.0073895]
[1641863125508,2.90604753,3059.5,3058.5,0.0073895]
[1641863125712,1.5328876,3059.3,3058.5,0.0073895]
[1641863125913,2.65977031,3059.2,3058.5,0.0073895]
[1641863126511,1.40175756,3059.1,3058.5,0.0073895]
[1641863126711,3.37928721,3059.0,3058.2,0.00909477]
[1641863126911,7.54707765,3059.0,3058.0,0.01023162]
[1641863127113,7.54707765,3059.0,3057.5,0.01307374]
[1641863127114,1.20475197,3058.3,3057.5,0.01307374]
[1641863127310,0.8177,3058.1,3057.5,0.01307374]
[1641863127911,3.8365,3058.4,3057.5,0.01307374]
[1641863128113,4.1365,3058.4,3057.5,0.01307374]
[1641863128356,4.95414,3058.4,3057.5,0.01307374]
[1641863128759,1.35535096,3058.3,3057.5,0.01307374]
[1641863129360,2.67785312,3058.2,3057.5,0.01307374]
[1641863129560,2.97785312,3058.2,3057.5,0.01307374]
[1641863129962,0.3,3058.2,3057.5,0.01307374]
[1641863130160,2.95274787,3058.2,3057.5,0.01307374]
[1641863130362,1.35535096,3058.3,3057.5,0.01307374]
[1641863130363,7.35736338,3058.4,3057.5,0.01307374]
[1641863130562,3.8365,3058.4,3057.6,0.471]
[1641863130763,1.60604753,3058.5,3057.6,0.471]
[1641863130962,4.16899202,3058.9,3057.7,0.02421418]
[1641863130963,1.60604753,3058.6,3057.7,0.02421418]